[Event "Turkish Cup 2024"]
[Site "Denizli"]
[Date "2024.07.31"]
[Round "3"]
[White "Cakir, Ege"]
[Black "Mangal, Ali"]
[Result "1-0"]
[ECO "D11"]
[WhiteElo "1889"]
[BlackElo "1770"]
[Annotator "NA"]
[PlyCount "91"]
[EventDate "2024.08.01"]
[EventType "swiss"]
[EventCountry "TUR"]
[SourceTitle "playchess.com"]
[Source "ChessBase"]
[SourceQuality "1"]
[TimeControl "5400+30"]

1. d4 {[%emt 0:02:00]} d5 {[%emt 0:01:00]} 2. Nf3 {[%emt 0:00:30]} Nf6 {[%emt 0:00:30]} 3. g3 {[%emt 0:00:00]} Bf5 {[%emt 0:00:30]} 4. Bg2 {[%emt 0:01:00]} e6 {[%emt 0:00:30]} 5. O-O {[%emt 0:00:30]} h6 {[%emt 0:00:00]} 6. c4 {[%emt 0:00:30]} c6 {[%emt 0:01:00]} 7. Nc3 {[%emt 0:01:30]} Nbd7 {[%emt 0:00:30]} 8. Nd2 {[%emt 0:04:30]} Bd6 {[%emt 0:00:30]} 9. e4 {[%emt 0:01:30]} dxe4 {[%emt 0:00:30]} 10. Ndxe4 {[%emt 0:00:00]} Nxe4 {[%emt 0:00:30]} 11. Nxe4 {[%emt 0:00:00]} Bc7 {[%emt 0:00:30]} 12. Be3 {[%emt 0:03:30]} O-O {[%emt 0:00:30]} 13. Qb3 {[%emt 0:01:30]} Qc8 {[%emt 0:02:30]} 14. Rac1 {[%emt 0:01:30]} Nb6 {[%emt 0:06:30]} 15. a4 {[%emt 0:03:30]} a5 {[%emt 0:00:30]} 16. Rfd1 {[%emt 0:07:30]} Nd7 {[%emt 0:05:30]} 17. d5 {[%emt 0:03:30]} Re8 {[%emt 0:06:30]} 18. dxc6 {[%emt 0:05:30]} bxc6 {[%emt 0:00:30]} 19. Nd6 {[%emt 0:03:30]} Bxd6 {[%emt 0:00:30]} 20. Rxd6 {[%emt 0:00:30]} Ra6 {[%emt 0:05:30]} 21. Rcd1 {[%emt 0:02:30]} Nf6 {[%emt 0:01:30]} 22. f3 {[%emt 0:13:30]} Kh7 {[%emt 0:04:30]} 23. Bf1 {[%emt 0:08:30]} Qc7 {[%emt 0:06:30]} 24. g4 {[%emt 0:05:30]} Rb8 {[%emt 0:01:30]} 25. Qc3 {[%emt 0:00:30]} Bg6 {[%emt 0:00:30]} 26. Bd3 {[%emt 0:01:30]} Bxd3 {[%emt 0:02:30]} 27. Qxd3+ {[%emt 0:00:00]} Kg8 {[%emt 0:15:30]} 28. Rd8+ {[%emt 0:03:00]} Ne8 {[%emt 0:01:30]} 29. Qd6 {[%emt 0:04:30]} Qxd6 {[%emt 0:08:30]} 30. R1xd6 {[%emt 0:00:30]} Raa8 {[%emt 0:00:30]} 31. Rxb8 {[%emt 0:00:00]} Rxb8 {[%emt 0:00:30]} 32. Rxc6 {[%emt 0:00:00]} Nf6 {[%emt 0:00:30]} 33. Bb6 {[%emt 0:01:30]} Nd7 {[%emt 0:00:30]} 34. Bd4 {[%emt 0:03:30]} Rb4 {[%emt 0:01:30]} 35. Rc8+ {[%emt 0:00:30]} Kh7 {[%emt 0:00:30]} 36. Rc7 {[%emt 0:00:30]} Nf6 {[%emt 0:01:30]} 37. Rxf7 {[%emt 0:00:50]} Kg6 {[%emt 0:00:30]} 38. Rc7 {[%emt 0:01:47]} Rxa4 {[%emt 0:00:30]} 39. h4 {[%emt 0:01:29]} h5 {[%emt 0:04:30]} 40. g5 {[%emt 0:04:19]} Ne8 {[%emt 0:00:30]} 41. Re7 {[%emt 0:00:20]} Rxc4 {[%emt 0:01:30]} 42. Bc3 {[%emt 0:00:06]} Rxh4 {[%emt 0:03:00]} 43. Rxe8 {[%emt 0:00:04]} Kxg5 {[%emt 0:00:31]} 44. Rxe6 {[%emt 0:00:11]} Kf5 {[%emt 0:01:05]} 45. Re5+ {[%emt 0:00:10]} Kf4 {[%emt 0:00:04]} 46. Re4+ {[%emt 0:00:31]} 1-0

[Event "Turkish Cup 2024"]
[Site "Denizli"]
[Date "2024.07.31"]
[Round "3"]
[White "Yasin, Hur"]
[Black "Orak, Yunus"]
[Result "0-1"]
[ECO "C58"]
[WhiteElo "1879"]
[BlackElo "1779"]
[Annotator "NA"]
[PlyCount "52"]
[EventDate "2024.08.01"]
[EventType "swiss"]
[EventCountry "TUR"]
[SourceTitle "playchess.com"]
[Source "ChessBase"]
[SourceQuality "1"]
[TimeControl "5400+30"]

1. e4 {[%emt 0:01:00]} e5 {[%emt 0:01:00]} 2. Nf3 {[%emt 0:00:30]} Nc6 {[%emt 0:00:00]} 3. Bc4 {[%emt 0:00:30]} Nf6 {[%emt 0:00:00]} 4. Ng5 {[%emt 0:01:30]} d5 {[%emt 0:00:30]} 5. exd5 {[%emt 0:00:30]} Na5 {[%emt 0:00:00]} 6. Bb5+ {[%emt 0:00:00]} c6 {[%emt 0:00:00]} 7. dxc6 {[%emt 0:01:00]} bxc6 {[%emt 0:00:00]} 8. Bd3 {[%emt 0:00:30]} h6 {[%emt 0:05:00]} 9. Ne4 {[%emt 0:00:30]} Nxe4 {[%emt 0:00:30]} 10. Bxe4 {[%emt 0:00:00]} Bd6 {[%emt 0:03:30]} 11. Qf3 {[%emt 0:10:00]} O-O {[%emt 0:07:30]} 12. g4 {[%emt 0:22:30]} Qg5 {[%emt 0:19:30]} 13. Bf5 {[%emt 0:08:30]} e4 {[%emt 0:09:30]} 14. Qe3 {[%emt 0:19:30]} Bf4 {[%emt 0:09:30]} 15. Qc5 {[%emt 0:00:30]} Nb7 {[%emt 0:01:30]} 16. Qxc6 {[%emt 0:00:30]} Bxf5 {[%emt 0:04:30]} 17. gxf5 {[%emt 0:00:00]} Qg2 {[%emt 0:03:30]} 18. Rf1 {[%emt 0:00:00]} Nd6 {[%emt 0:00:30]} 19. Nc3 {[%emt 0:05:30]} Nxf5 {[%emt 0:00:30]} 20. Nxe4 {[%emt 0:01:30]} Rfe8 {[%emt 0:00:30]} 21. d3 {[%emt 0:00:30]} Nd4 {[%emt 0:03:30]} 22. Qc4 {[%emt 0:06:30]} Rxe4+ {[%emt 0:04:30]} 23. dxe4 {[%emt 0:00:30]} Qxe4+ {[%emt 0:00:00]} 24. Kd1 {[%emt 0:09:16]} Qf3+ {[%emt 0:00:00]} 25. Ke1 {[%emt 0:01:42]} Re8+ {[%emt 0:00:30]} 26. Be3 {[%emt 0:00:30]} Rxe3+ {[%emt 0:00:00]} 0-1

[Event "Turkish Cup 2024"]
[Site "Denizli"]
[Date "2024.07.31"]
[Round "3"]
[White "Degirmenci, Yagiz"]
[Black "Pekdemir, Veysel"]
[Result "1/2-1/2"]
[ECO "D00"]
[WhiteElo "1871"]
[BlackElo "1717"]
[Annotator "NA"]
[PlyCount "110"]
[EventDate "2024.08.01"]
[EventType "swiss"]
[EventCountry "TUR"]
[SourceTitle "playchess.com"]
[Source "ChessBase"]
[SourceQuality "1"]
[TimeControl "5400+30"]

1. d4 {[%emt 0:01:00]} d5 {[%emt 0:01:00]} 2. e3 {[%emt 0:02:30]} Nf6 {[%emt 0:00:30]} 3. Bd3 {[%emt 0:00:30]} c5 {[%emt 0:02:30]} 4. c3 {[%emt 0:00:00]} Nc6 {[%emt 0:00:00]} 5. f4 {[%emt 0:00:00]} Bg4 {[%emt 0:02:00]} 6. Nf3 {[%emt 0:01:30]} c4 {[%emt 0:02:30]} 7. Bc2 {[%emt 0:00:30]} e6 {[%emt 0:03:30]} 8. Nbd2 {[%emt 0:04:30]} Bd6 {[%emt 0:03:30]} 9. O-O {[%emt 0:00:30]} O-O {[%emt 0:00:30]} 10. Qe1 {[%emt 0:02:30]} Ne7 {[%emt 0:02:30]} 11. Ne5 {[%emt 0:01:30]} Bf5 {[%emt 0:00:30]} 12. e4 {[%emt 0:00:30]} Nxe4 {[%emt 0:01:30]} 13. Nxe4 {[%emt 0:03:30]} Bxe4 {[%emt 0:01:30]} 14. Bxe4 {[%emt 0:01:30]} dxe4 {[%emt 0:00:30]} 15. Qxe4 {[%emt 0:05:30]} b5 {[%emt 0:01:30]} 16. Nc6 {[%emt 0:08:30]} Nxc6 {[%emt 0:03:30]} 17. Qxc6 {[%emt 0:00:30]} a6 {[%emt 0:00:30]} 18. f5 {[%emt 0:06:30]} exf5 {[%emt 0:13:30]} 19. Rxf5 {[%emt 0:01:30]} Qc7 {[%emt 0:04:30]} 20. Qxc7 {[%emt 0:01:30]} Bxc7 {[%emt 0:00:30]} 21. Rf2 {[%emt 0:10:30]} Rfe8 {[%emt 0:01:30]} 22. Bf4 {[%emt 0:00:30]} Bxf4 {[%emt 0:01:30]} 23. Rxf4 {[%emt 0:00:30]} Re2 {[%emt 0:02:30]} 24. Rf2 {[%emt 0:03:30]} Rae8 {[%emt 0:04:30]} 25. Kf1 {[%emt 0:00:30]} R2e3 {[%emt 0:00:30]} 26. Rd2 {[%emt 0:00:30]} Kf8 {[%emt 0:06:30]} 27. a4 {[%emt 0:04:30]} R3e6 {[%emt 0:04:30]} 28. axb5 {[%emt 0:01:30]} axb5 {[%emt 0:00:30]} 29. Ra7 {[%emt 0:01:30]} R8e7 {[%emt 0:02:30]} 30. Ra8+ {[%emt 0:02:30]} Re8 {[%emt 0:00:30]} 31. Rxe8+ {[%emt 0:00:30]} Kxe8 {[%emt 0:04:30]} 32. Re2 {[%emt 0:00:30]} Kd7 {[%emt 0:00:00]} 33. Rxe6 {[%emt 0:00:30]} Kxe6 {[%emt 0:00:00]} 34. Ke2 {[%emt 0:00:30]} f5 {[%emt 0:00:30]} 35. h4 {[%emt 0:01:30]} f4 {[%emt 0:04:30]} 36. Kf3 {[%emt 0:02:30]} Kf5 {[%emt 0:00:30]} 37. d5 {[%emt 0:07:30]} Ke5 {[%emt 0:00:30]} 38. d6 {[%emt 0:05:47]} Kxd6 {[%emt 0:00:30]} 39. Kxf4 {[%emt 0:00:13]} Ke6 {[%emt 0:01:30]} 40. Ke4 {[%emt 0:02:41]} h5 {[%emt 0:00:30]} 41. Kf4 {[%emt 0:01:03]} Kf6 {[%emt 0:00:30]} 42. g4 {[%emt 0:00:22]} hxg4 {[%emt 0:02:30]} 43. Kxg4 {[%emt 0:00:07]} Kg6 {[%emt 0:00:00]} 44. h5+ {[%emt 0:01:29]} Kh6 {[%emt 0:00:00]} 45. Kh4 {[%emt 0:00:18]} g6 {[%emt 0:00:30]} 46. hxg6 {[%emt 0:00:54]} Kxg6 {[%emt 0:00:30]} 47. Kg4 {[%emt 0:00:30]} Kf6 {[%emt 0:00:30]} 48. Kf4 {[%emt 0:00:00]} Ke6 {[%emt 0:00:00]} 49. Ke4 {[%emt 0:00:00]} Kd6 {[%emt 0:00:00]} 50. Kd4 {[%emt 0:01:10]} Kc6 {[%emt 0:00:00]} 51. Ke5 {[%emt 0:02:21]} Kc5 {[%emt 0:00:00]} 52. Ke6 {[%emt 0:00:51]} Kc6 {[%emt 0:01:30]} 53. Ke7 {[%emt 0:03:22]} Kc7 {[%emt 0:01:30]} 54. Ke6 {[%emt 0:00:30]} Kc6 {[%emt 0:00:00]} 55. Ke5 {[%emt 0:00:07]} Kc5 {[%emt 0:00:00]} 1/2-1/2

[Event "Turkish Cup 2024"]
[Site "Denizli"]
[Date "2024.07.31"]
[Round "3"]
[White "Zuberoglu, Ibrahim Berk"]
[Black "Maras, Huseyin Kayra"]
[Result "0-1"]
[ECO "C55"]
[WhiteElo "1870"]
[BlackElo "1860"]
[Annotator "NA"]
[PlyCount "52"]
[EventDate "2024.08.01"]
[EventType "swiss"]
[EventCountry "TUR"]
[SourceTitle "playchess.com"]
[Source "ChessBase"]
[SourceQuality "1"]
[TimeControl "5400+30"]

1. e4 {[%emt 0:09:00]} e5 {[%emt 0:00:00]} 2. Nf3 {[%emt 0:00:30]} Nc6 {[%emt 0:00:00]} 3. Bc4 {[%emt 0:00:30]} Nf6 {[%emt 0:00:00]} 4. d3 {[%emt 0:00:30]} Be7 {[%emt 0:00:00]} 5. O-O {[%emt 0:00:30]} O-O {[%emt 0:00:00]} 6. c3 {[%emt 0:00:30]} d5 {[%emt 0:00:30]} 7. exd5 {[%emt 0:00:30]} Nxd5 {[%emt 0:00:30]} 8. Re1 {[%emt 0:01:30]} Bg4 {[%emt 0:00:30]} 9. h3 {[%emt 0:03:30]} Bh5 {[%emt 0:00:30]} 10. g4 {[%emt 0:02:30]} Bg6 {[%emt 0:00:00]} 11. Nxe5 {[%emt 0:02:30]} Nxe5 {[%emt 0:00:00]} 12. Rxe5 {[%emt 0:00:30]} c6 {[%emt 0:00:30]} 13. Bxd5 {[%emt 0:05:30]} cxd5 {[%emt 0:00:00]} 14. Qf3 {[%emt 0:03:30]} d4 {[%emt 0:10:00]} 15. Rd5 {[%emt 0:10:30]} Qb6 {[%emt 0:02:30]} 16. Rxd4 {[%emt 0:03:30]} Bc5 {[%emt 0:02:30]} 17. Rd7 {[%emt 0:01:30]} Rae8 {[%emt 0:04:30]} 18. Nd2 {[%emt 0:18:30]} Qe6 {[%emt 0:06:30]} 19. Rd5 {[%emt 0:05:30]} Bxf2+ {[%emt 0:00:30]} 20. Kg2 {[%emt 0:05:30]} Qe1 {[%emt 0:00:30]} 21. Nf1 {[%emt 0:02:30]} Re2 {[%emt 0:00:30]} 22. Bd2 {[%emt 0:05:31]} Be3+ {[%emt 0:02:30]} 23. Kh1 {[%emt 0:01:57]} Qxa1 {[%emt 0:00:00]} 24. Qxe2 {[%emt 0:02:47]} Bxd2 {[%emt 0:00:00]} 25. Re5 {[%emt 0:13:05]} h6 {[%emt 0:05:30]} 26. Qd1 {[%emt 0:01:10]} Be4+ {[%emt 0:00:30]} 0-1

[Event "Turkish Cup 2024"]
[Site "Denizli"]
[Date "2024.07.31"]
[Round "3"]
[White "Simsek, Suat Can"]
[Black "Yardimci, Can"]
[Result "1/2-1/2"]
[ECO "E71"]
[WhiteElo "1857"]
[BlackElo "1930"]
[Annotator "ChessBase"]
[PlyCount "96"]
[EventDate "2024.08.01"]
[EventType "swiss"]
[EventCountry "TUR"]
[SourceTitle "playchess.com"]
[Source "ChessBase"]
[SourceQuality "1"]
[TimeControl "5400+30"]

1. d4 {[%emt 0:01:00]} Nf6 {[%emt 0:01:00]} 2. c4 {[%emt 0:00:00]} g6 {[%emt 0:00:30]} 3. Nc3 {[%emt 0:00:00]} Bg7 {[%emt 0:00:30]} 4. e4 {[%emt 0:00:00]} d6 {[%emt 0:00:00]} 5. h3 {[%emt 0:00:00]} e5 {[%emt 0:01:00]} 6. d5 {[%emt 0:00:30]} Na6 {[%emt 0:02:30]} 7. Be3 {[%emt 0:00:30]} O-O {[%emt 0:02:30]} 8. Qd2 {[%emt 0:00:00]} Nh5 {[%emt 0:02:30]} 9. g4 {[%emt 0:02:00]} Nf4 {[%emt 0:00:30]} 10. Nge2 {[%emt 0:00:30]} f5 {[%emt 0:07:30]} 11. gxf5 {[%emt 0:03:30]} gxf5 {[%emt 0:02:30]} 12. Nxf4 {[%emt 0:03:30]} exf4 {[%emt 0:00:30]} 13. Bxf4 {[%emt 0:00:30]} fxe4 {[%emt 0:00:30]} 14. Rg1 {[%emt 0:03:30]} Bf5 {[%emt 0:07:30]} 15. O-O-O {[%emt 0:04:30]} Bg6 {[%emt 0:07:30]} 16. Bg5 {[%emt 0:01:30]} Qd7 {[%emt 0:01:30]} 17. Bh6 {[%emt 0:00:30]} Qf5 {[%emt 0:12:30]} 18. Bxg7 {[%emt 0:00:30]} Kxg7 {[%emt 0:01:30]} 19. h4 {[%emt 0:11:30]} Kh8 {[%emt 0:04:30]} 20. Be2 {[%emt 0:27:30]} Qf4 {[%emt 0:07:30]} 21. h5 {[%emt 0:04:30]} Qxd2+ {[%emt 0:00:30]} 22. Rxd2 {[%emt 0:00:30]} Bf5 {[%emt 0:00:30]} 23. Rdd1 {[%emt 0:00:30]} Rae8 {[%emt 0:00:30]} 24. Rg3 {[%emt 0:02:30]} Nc5 {[%emt 0:07:30]} 25. Rdg1 {[%emt 0:00:30]} Re7 {[%emt 0:01:30]} 26. b4 {[%emt 0:01:30]} Nd7 {[%emt 0:01:30]} 27. Nd1 {[%emt 0:02:30]} Ne5 {[%emt 0:01:30]} 28. Ne3 {[%emt 0:01:30]} h6 {[%emt 0:00:30]} 29. Kd2 {[%emt 0:06:30]} Bh7 {[%emt 0:01:30]} 30. R1g2 {[%emt 0:00:30]} Ref7 {[%emt 0:01:30]} 31. Ke1 {[%emt 0:00:30]} a5 {[%emt 0:03:30]} 32. b5 {[%emt 0:08:25]} Nd3+ {[%emt 0:01:41]} 33. Bxd3 {[%emt 0:00:17]} exd3 {[%emt 0:00:19]} 34. Nd1 {[%emt 0:04:14]} Rf4 {[%emt 0:03:09]} 35. Rg4 {[%emt 0:06:19]} R8f5 {[%emt 0:08:29]} 36. Rxf4 {[%emt 0:02:06]} Rxf4 {[%emt 0:00:30]} 37. Ne3 {[%emt 0:00:00]} Rh4 {[%emt 0:00:13]} 38. Rg4 {[%emt 0:03:01]} Rxh5 {[%emt 0:01:31]} 39. c5 {[%emt 0:00:15]} Re5 {[%emt 0:04:07]} 40. b6 {[%emt 0:01:24]} cxb6 {[%emt 0:00:06]} 41. cxd6 {[%emt 0:01:43]} Re8 {[%emt 0:00:05]} 42. Kd2 {[%emt 0:00:00]} b5 {[%emt 0:00:45]} 43. Rh4 {[%emt 0:00:40]} Kg7 {[%emt 0:01:57]} 44. Rg4+ {[%emt 0:00:28]} Kf6 {[%emt 0:01:41]} 45. Rf4+ {[%emt 0:00:04]} Kg7 {[%emt 0:00:00]} 46. Rg4+ {[%emt 0:00:19]} Kh8 {[%emt 0:02:35]} 47. Rh4 {[%emt 0:00:03]} Bg6 {[%emt 0:00:40]} 48. Rxh6+ {[%emt 0:00:30]} Kg7 {[%emt 0:00:26]} 1/2-1/2

[Event "Turkish Cup 2024"]
[Site "Denizli"]
[Date "2024.07.31"]
[Round "3"]
[White "Korkmaz, Turhan"]
[Black "Egeli, Sercan Veli"]
[Result "0-1"]
[ECO "A47"]
[WhiteElo "1838"]
[BlackElo "1783"]
[Annotator "NA"]
[PlyCount "104"]
[EventDate "2024.08.01"]
[EventType "swiss"]
[EventCountry "TUR"]
[SourceTitle "playchess.com"]
[Source "ChessBase"]
[SourceQuality "1"]
[TimeControl "5400+30"]

1. d4 {[%emt 0:01:00]} Nf6 {[%emt 0:01:00]} 2. Nf3 {[%emt 0:00:30]} e6 {[%emt 0:00:30]} 3. Bf4 {[%emt 0:01:30]} b6 {[%emt 0:00:00]} 4. e3 {[%emt 0:00:00]} Bb7 {[%emt 0:00:00]} 5. a3 {[%emt 0:02:00]} Be7 {[%emt 0:02:30]} 6. Bd3 {[%emt 0:00:30]} c5 {[%emt 0:00:00]} 7. Nc3 {[%emt 0:00:30]} O-O {[%emt 0:01:00]} 8. g4 {[%emt 0:02:30]} Nxg4 {[%emt 0:04:30]} 9. Rg1 {[%emt 0:00:30]} f5 {[%emt 0:03:30]} 10. h3 {[%emt 0:00:30]} Nf6 {[%emt 0:00:30]} 11. Bh6 {[%emt 0:00:00]} Ne8 {[%emt 0:01:30]} 12. Qe2 Kh8 {[%emt 0:00:30]} 13. Bf4 {[%emt 0:05:30]} d5 {[%emt 0:11:30]} 14. dxc5 {[%emt 0:00:30]} bxc5 {[%emt 0:00:30]} 15. O-O-O {[%emt 0:00:30]} Qb6 {[%emt 0:01:30]} 16. Bb5 {[%emt 0:03:30]} Nd6 {[%emt 0:12:30]} 17. Be5 {[%emt 0:06:30]} Bf6 {[%emt 0:00:00]} 18. Bxf6 {[%emt 0:00:30]} Rxf6 {[%emt 0:00:00]} 19. Ng5 {[%emt 0:01:30]} Nc6 {[%emt 0:03:30]} 20. Qh5 {[%emt 0:02:30]} h6 {[%emt 0:01:30]} 21. Be2 {[%emt 0:01:30]} Rb8 {[%emt 0:14:30]} 22. Nxe6 {[%emt 0:02:30]} Rxe6 {[%emt 0:02:30]} 23. Nxd5 {[%emt 0:00:30]} Qd8 {[%emt 0:00:30]} 24. Nf4 {[%emt 0:00:00]} Rf6 {[%emt 0:00:30]} 25. Nd5 {[%emt 0:03:00]} Re6 {[%emt 0:05:30]} 26. Nf4 {[%emt 0:03:30]} Rf6 {[%emt 0:00:30]} 27. Qh4 {[%emt 0:02:30]} Ne5 {[%emt 0:16:35]} 28. Nh5 {[%emt 0:03:30]} Rf7 {[%emt 0:05:27]} 29. Qg3 {[%emt 0:00:30]} Qe7 {[%emt 0:00:37]} 30. Nf4 {[%emt 0:06:30]} Ne4 {[%emt 0:01:49]} 31. Ng6+ {[%emt 0:00:30]} Nxg6 {[%emt 0:00:00]} 32. Qxb8+ {[%emt 0:00:00]} Rf8 {[%emt 0:02:46]} 33. Qh2 {[%emt 0:04:00]} Ne5 {[%emt 0:03:24]} 34. Kb1 {[%emt 0:01:30]} c4 {[%emt 0:04:31]} 35. f4 {[%emt 0:01:30]} Nc6 {[%emt 0:02:02]} 36. Bxc4 {[%emt 0:00:30]} Rb8 {[%emt 0:00:03]} 37. Bb3 {[%emt 0:05:30]} Bc8 {[%emt 0:00:41]} 38. Rg6 {[%emt 0:00:30]} Na5 {[%emt 0:00:15]} 39. Rdg1 {[%emt 0:03:30]} Nxb3 {[%emt 0:00:38]} 40. cxb3 {[%emt 0:11:30]} Nc3+ {[%emt 0:00:04]} 41. Kc2 {[%emt 0:12:29]} Qe4+ {[%emt 0:00:08]} 42. Kd2 {[%emt 0:04:17]} Rxb3 {[%emt 0:00:11]} 43. Rxg7 {[%emt 0:01:06]} Be6 {[%emt 0:02:00]} 44. R7g6 {[%emt 0:00:02]} Kh7 {[%emt 0:00:44]} 45. Rg7+ {[%emt 0:00:30]} Kh8 {[%emt 0:00:30]} 46. R7g6 {[%emt 0:00:00]} Rxb2+ {[%emt 0:00:01]} 47. Kxc3 {[%emt 0:00:48]} Rb3+ {[%emt 0:00:07]} 48. Kd2 {[%emt 0:00:06]} Qxe3+ {[%emt 0:00:52]} 49. Kd1 {[%emt 0:02:41]} Qd3+ {[%emt 0:00:02]} 50. Ke1 {[%emt 0:00:21]} Rb1+ {[%emt 0:00:11]} 51. Kf2 {[%emt 0:00:11]} Rb2+ {[%emt 0:00:04]} 52. Ke1 {[%emt 0:00:17]} Qb1# {[%emt 0:00:02]} 0-1

[Event "Turkish Cup 2024"]
[Site "Denizli"]
[Date "2024.07.31"]
[Round "3"]
[White "Adiguzel, Hakan"]
[Black "Gunduz, Umut Erdem"]
[Result "0-1"]
[ECO "B61"]
[WhiteElo "1821"]
[BlackElo "2276"]
[Annotator "RC"]
[PlyCount "100"]
[EventDate "2024.08.01"]
[EventType "swiss"]
[EventCountry "TUR"]
[SourceTitle "playchess.com"]
[Source "ChessBase"]
[SourceQuality "1"]
[TimeControl "5400+30"]

1. e4 {[%emt 0:01:00]} c5 {[%emt 0:03:00]} 2. Nf3 {[%emt 0:00:00]} d6 {[%emt 0:00:30]} 3. d4 {[%emt 0:00:00]} cxd4 {[%emt 0:00:00]} 4. Nxd4 {[%emt 0:00:30]} Nf6 {[%emt 0:00:00]} 5. Nc3 {[%emt 0:00:00]} Nc6 {[%emt 0:00:30]} 6. Bg5 {[%emt 0:00:00]} Bd7 {[%emt 0:00:30]} 7. Qd2 {[%emt 0:03:30]} Rc8 {[%emt 0:00:30]} 8. O-O-O {[%emt 0:04:30]} Nxd4 {[%emt 0:00:30]} 9. Qxd4 {[%emt 0:00:30]} Qa5 {[%emt 0:00:00]} 10. f4 {[%emt 0:07:30]} Rxc3 {[%emt 0:00:00]} 11. bxc3 {[%emt 0:02:30]} e5 {[%emt 0:00:00]} 12. Qc4 {[%emt 0:20:30]} d5 {[%emt 0:12:00]} 13. Rxd5 {[%emt 0:05:30]} Nxd5 {[%emt 0:10:30]} 14. Qxd5 {[%emt 0:00:00]} Ba3+ {[%emt 0:01:30]} 15. Kd2 {[%emt 0:02:00]} Qxd5+ {[%emt 0:04:30]} 16. exd5 {[%emt 0:00:30]} f6 {[%emt 0:00:30]} 17. Bh4 {[%emt 0:02:30]} exf4 {[%emt 0:00:00]} 18. Bf2 {[%emt 0:02:30]} b6 {[%emt 0:00:00]} 19. Bd3 {[%emt 0:02:30]} Kf7 {[%emt 0:01:30]} 20. c4 {[%emt 0:14:30]} Rc8 {[%emt 0:02:30]} 21. Re1 {[%emt 0:03:30]} g5 {[%emt 0:04:30]} 22. Bd4 {[%emt 0:04:30]} Bc5 {[%emt 0:04:30]} 23. c3 {[%emt 0:04:27]} Ba3 {[%emt 0:00:30]} 24. Kc2 {[%emt 0:02:22]} h5 {[%emt 0:00:30]} 25. Kb3 {[%emt 0:00:40]} Bd6 {[%emt 0:00:30]} 26. a4 {[%emt 0:00:00]} g4 {[%emt 0:01:30]} 27. a5 {[%emt 0:00:58]} bxa5 {[%emt 0:02:30]} 28. Bxa7 {[%emt 0:00:11]} h4 {[%emt 0:01:30]} 29. Rf1 {[%emt 0:01:25]} f5 {[%emt 0:06:30]} 30. c5 {[%emt 0:03:17]} Bxc5 {[%emt 0:00:30]} 31. Bxc5 {[%emt 0:00:04]} Rxc5 {[%emt 0:00:00]} 32. Rxf4 {[%emt 0:00:01]} Kf6 {[%emt 0:02:00]} 33. c4 {[%emt 0:01:03]} Ke5 {[%emt 0:01:30]} 34. Rf1 {[%emt 0:00:15]} Rc8 {[%emt 0:07:30]} 35. Kc3 {[%emt 0:00:11]} f4 {[%emt 0:01:30]} 36. Re1+ {[%emt 0:00:30]} Kf6 {[%emt 0:00:30]} 37. Re4 {[%emt 0:00:50]} f3 {[%emt 0:00:30]} 38. gxf3 {[%emt 0:01:16]} g3 {[%emt 0:00:00]} 39. hxg3 {[%emt 0:05:09]} hxg3 {[%emt 0:01:00]} 40. Bf1 {[%emt 0:01:01]} Bf5 {[%emt 0:05:30]} 41. Re2 {[%emt 0:00:49]} Kg5 {[%emt 0:01:30]} 42. Ra2 {[%emt 0:00:39]} Ra8 {[%emt 0:04:30]} 43. c5 {[%emt 0:02:10]} Kf4 {[%emt 0:01:30]} 44. d6 {[%emt 0:00:36]} Bd7 {[%emt 0:00:30]} 45. Rb2 {[%emt 0:04:38]} a4 {[%emt 0:00:30]} 46. Rb7 {[%emt 0:00:08]} a3 {[%emt 0:01:30]} 47. Bc4 {[%emt 0:00:30]} g2 {[%emt 0:00:00]} 48. Rb1 {[%emt 0:00:00]} Bc6 {[%emt 0:03:33]} 49. Be6 {[%emt 0:00:11]} Kg3 {[%emt 0:04:22]} 50. Ra1 {[%emt 0:00:45]} Kh2 {[%emt 0:00:23]} 0-1

[Event "Turkish Cup 2024"]
[Site "Denizli"]
[Date "2024.07.31"]
[Round "3"]
[White "Dokmecioglu, Burak"]
[Black "Dirikolu, Deniz"]
[Result "0-1"]
[ECO "C60"]
[WhiteElo "1800"]
[BlackElo "1911"]
[Annotator "ChessBase"]
[PlyCount "66"]
[EventDate "2024.08.01"]
[EventType "swiss"]
[EventCountry "TUR"]
[SourceTitle "playchess.com"]
[Source "ChessBase"]
[SourceQuality "1"]
[TimeControl "5400+30"]

1. e4 {[%emt 0:01:00]} e5 {[%emt 0:01:00]} 2. Nf3 {[%emt 0:00:30]} Nc6 {[%emt 0:00:00]} 3. Bb5 {[%emt 0:00:00]} g6 {[%emt 0:00:00]} 4. d4 {[%emt 0:01:00]} exd4 {[%emt 0:00:00]} 5. c3 {[%emt 0:00:30]} a6 {[%emt 0:00:00]} 6. Bxc6 {[%emt 0:00:30]} dxc6 {[%emt 0:00:30]} 7. cxd4 {[%emt 0:00:00]} Bg7 {[%emt 0:00:00]} 8. h3 {[%emt 0:00:00]} Qd6 {[%emt 0:03:00]} 9. Nc3 {[%emt 0:09:30]} Be6 {[%emt 0:01:30]} 10. O-O {[%emt 0:02:30]} O-O-O {[%emt 0:06:30]} 11. Be3 {[%emt 0:02:30]} f5 {[%emt 0:10:30]} 12. Qd2 {[%emt 0:27:30]} fxe4 {[%emt 0:10:30]} 13. Nxe4 {[%emt 0:02:30]} Qf8 {[%emt 0:00:30]} 14. Nfg5 {[%emt 0:08:30]} Bd5 {[%emt 0:00:30]} 15. Nc5 {[%emt 0:00:30]} Re8 {[%emt 0:00:00]} 16. f4 {[%emt 0:14:30]} Nf6 {[%emt 0:05:00]} 17. Rae1 {[%emt 0:02:30]} h6 {[%emt 0:17:30]} 18. Nf3 {[%emt 0:01:30]} Bxf3 {[%emt 0:00:30]} 19. Rxf3 {[%emt 0:00:30]} Nd5 {[%emt 0:00:30]} 20. Bf2 {[%emt 0:04:30]} Qf5 {[%emt 0:03:30]} 21. Nd3 {[%emt 0:01:18]} Rhf8 {[%emt 0:03:30]} 22. Rxe8+ {[%emt 0:01:51]} Rxe8 {[%emt 0:03:30]} 23. Ne5 {[%emt 0:00:11]} Rf8 {[%emt 0:00:30]} 24. a3 {[%emt 0:04:10]} Nxf4 {[%emt 0:05:30]} 25. Nxg6 {[%emt 0:04:40]} Qb1+ {[%emt 0:00:30]} 26. Kh2 {[%emt 0:00:19]} Nxg6 {[%emt 0:00:00]} 27. Rxf8+ {[%emt 0:00:46]} Bxf8 {[%emt 0:00:00]} 28. Qe3 {[%emt 0:00:15]} Bd6+ {[%emt 0:01:30]} 29. g3 {[%emt 0:00:40]} b6 {[%emt 0:00:00]} 30. Qxh6 {[%emt 0:00:44]} Qf5 {[%emt 0:00:00]} 31. Kg2 {[%emt 0:00:25]} Qe4+ {[%emt 0:00:30]} 32. Kg1 {[%emt 0:00:33]} Ne7 {[%emt 0:00:00]} 33. g4 {[%emt 0:03:25]} Nd5 {[%emt 0:00:00]} 0-1